fUST/lending_fUST_20240117
["ID","MTS","AMOUNT","RATE_DAILY","PERIOD"]
[311810483,1705421580257,-500.0,0.00041506,30]
[311810484,1705421580285,-500.0,0.00041506,30]
[311810485,1705421580314,-510.30676782,0.00041506,30]
[311810486,1705421580338,-7953.13,0.00041506,30]
[311810487,1705421580362,-500.0,0.00041506,30]
[311810488,1705421580386,-500.0,0.00041506,30]
[311810489,1705421580414,-500.0,0.00041506,30]
[311810490,1705421580439,-1159.97,0.00041506,30]
[311810491,1705421580463,-500.0,0.00041506,30]
[311810492,1705421580489,-500.0,0.00041506,30]
[311810493,1705421580513,-500.0,0.00041506,30]
[311810494,1705421580536,-508.89384198,0.00041506,30]
[311810495,1705421580560,-500.0,0.00041506,30]
[311810496,1705421580584,-514.67,0.00041506,30]
[311810497,1705421580608,-500.0,0.00041506,30]
[311810498,1705421580632,-508.87,0.00041506,30]
[311810499,1705421580658,-500.0,0.00041506,30]
[311810500,1705421580681,-506.55486658,0.00041506,30]
[311810501,1705421580705,-500.0,0.00041506,30]
[311810502,1705421580728,-500.0,0.00041506,30]
[311810503,1705421580751,-500.0,0.00041506,30]
[311810504,1705421580777,-500.0,0.00041506,30]
[311810505,1705421580801,-351.04915465,0.00041506,30]
[311810506,1705421580824,-500.0,0.00041506,30]
[311810507,1705421580849,-500.0,0.00041506,30]
[311810508,1705421580875,-374.75994144,0.00041506,30]
[311810509,1705421580899,-500.0,0.00041506,30]
[311810510,1705421580924,-500.0,0.00041506,30]
[311810511,1705421580949,-500.0,0.00041506,30]
[311810512,1705421580975,-669.72,0.00041506,30]
[311810513,1705421580999,-500.0,0.00041506,30]
[311810514,1705421581024,-500.0,0.00041506,30]
[311810515,1705421581048,-1274.64,0.00041506,30]
[311810516,1705421581072,-500.0,0.00041506,30]
[311810517,1705421581096,-500.0,0.00041506,30]
[311810518,1705421581119,-500.0,0.00041506,30]
[311810519,1705421581142,-150.0,0.00041506,30]
[311810520,1705421581167,-500.0,0.00041506,30]
[311810521,1705421581190,-572.64,0.00041506,30]
[311810522,1705421581213,-500.0,0.00041506,30]
[311810523,1705421581239,-1953.49,0.00041506,30]
[311810524,1705421581262,-500.0,0.00041506,30]
[311810525,1705421581286,-585.94,0.00041506,30]
[311810526,1705421581309,-817.87,0.00041506,30]
[311810527,1705421581334,-2856.65,0.00041506,30]
[311810528,1705421581359,-500.0,0.00041506,30]
[311810529,1705421581387,-697.09,0.00041506,30]
[311810530,1705421581412,-500.0,0.00041506,30]
[311810531,1705421581439,-500.0,0.00041506,30]
[311810532,1705421581465,-733.54,0.00041506,30]
[311810533,1705421581489,-500.0,0.00041506,30]
[311810534,1705421581515,-500.0,0.00041506,30]
[311810535,1705421581541,-4079.73,0.00041506,30]
[311810536,1705421581566,-500.0,0.00041506,30]
[311810537,1705421581589,-498.48161421,0.00041506,30]
[311810538,1705421581613,-500.0,0.00041506,30]
[311810539,1705421581639,-2619.48,0.00041506,30]
[311810540,1705421581665,-500.0,0.00041506,30]
[311810541,1705421581689,-500.0,0.00041506,30]
[311810542,1705421581712,-378.29938284,0.00041506,30]
[311810543,1705421581736,-1195.61,0.00041506,30]
[311810544,1705421581759,-500.0,0.00041506,30]
[311810545,1705421581861,-500.0,0.00041506,30]
[311810546,1705421581887,-985.14,0.00041506,30]
[311810547,1705421581912,-500.0,0.00041506,30]
[311810548,1705421581936,-552.27802625,0.00041506,30]
[311810549,1705421581961,-1599.84,0.00041506,30]
[311810550,1705421581987,-500.0,0.00041506,30]
[311810551,1705421582013,-643.54496172,0.00041506,30]
[311810552,1705421582037,-726.93,0.00041506,30]
[311810553,1705421582062,-1009.6,0.00041506,30]
[311810554,1705421582086,-500.0,0.00041506,30]
[311810555,1705421582110,-497.68628327,0.00041506,30]
[311810708,1705422632875,-154.95351395,0.00027899,4]
[311810709,1705422632885,-165.19538764,0.000279,2]
[311810710,1705422632895,-2336.25252632,0.00028809,2]
[311810711,1705422632907,-4423.80270105,0.00028809,2]
[311810712,1705422632921,-1007.35903687,0.00028809,2]
[311810713,1705422633003,-17132.58573576,0.00028809,2]
[311810715,1705422633013,-2004.51492018,0.00028836,5]
[311810717,1705422633023,-1178.7114548,0.00028841,2]
[311810718,1705422633032,-177.598992,0.00029863,2]
[311810720,1705422633042,-150.0,0.00030451,7]
[311810722,1705422633052,-150.0,0.00031644,7]
[311810723,1705422633063,-46065.05455059,0.000319,2]
[311810725,1705422633072,-262.11467996,0.00031998,7]
[311810727,1705422633082,-1993.18581871,0.00031998,4]
[311810729,1705422633092,-1000.0,0.00034794,7]
[311810731,1705422633101,-382.0,0.00034795,2]
[311810733,1705422633111,-382.0,0.00035,2]
[311810735,1705422633121,-170.0,0.00035,2]
[311810737,1705422633131,-6758.53889554,0.00035,4]
[311810738,1705422633143,-1493.73141194,0.00035613,7]
[311810740,1705422633152,-2153.94041184,0.00035614,4]
[311810742,1705422633161,-591.50732414,0.00035615,2]
[311810744,1705422633170,-929.655842,0.00035616,120]
[311810746,1705422633180,-230.31267465,0.00036246,4]
[311810748,1705422633189,-382.0,0.00036247,2]
[311810750,1705422633198,-170.0,0.00036247,2]
[311810752,1705422633207,-507.1853477,0.00036984,7]
[311810755,1705422633218,-383.0,0.00038059,2]
[311810756,1705422633228,-5766.51495852,0.0003999,4]
[311810758,1705422633238,-154.9690062,0.0004,4]
[311810759,1705422633247,-500.0,0.0004,10]
[311810760,1705422633257,-150.0,0.0004,27]
[311810761,1705422633266,-1919.39570103,0.0004,4]
[311810763,1705422633275,-1815.70792445,0.0004,30]
[311810765,1705422633285,-382.0,0.00040596,14]
[311810767,1705422633293,-2716.24,0.0004099,3]
[311810768,1705422633302,-2263.54,0.0004099,3]
[311810770,1705422633312,-3431.97977319,0.00041,15]
[311810799,1705422638579,-5766.51495852,0.00039999,4]
[311810800,1705422638588,-2256.42018137,0.00041,15]
[311810801,1705422638597,-16984.28367361,0.00041,5]
[311810802,1705422638608,-6864.9420789,0.00041,5]
[311810803,1705422638637,-693.16914868,0.00041,5]
[311810851,1705422641040,-6598.52603834,0.00041,5]
[311810852,1705422641052,-4550.6188457,0.00041,5]
[311810853,1705422641062,-796.0,0.00041,15]
[311810854,1705422641071,-615.28699764,0.00041,15]
[311810855,1705422641080,-150.5,0.00041065,30]
[311810856,1705422641090,-150.5,0.00041075,30]
[311810857,1705422641100,-853.00027206,0.0004108,2]
[311810858,1705422641109,-654.8675193,0.00041083,3]
[311810899,1705422645932,-500.0,0.00041083,3]
[311811042,1705423762216,-166.666666,0.00028118,2]
[311811043,1705423762238,-1986.17747693,0.00028831,2]
[311811044,1705423762261,-154.95351395,0.00028832,4]
[311811045,1705423762282,-20882.03797315,0.00028832,2]
[311811046,1705423762307,-6038.03087032,0.00028833,2]
[311811047,1705423762330,-3296.11144003,0.00028836,5]
[311811048,1705423762355,-601.35447606,0.00028836,5]
[311811049,1705423762376,-166.666666,0.00029077,2]
[311811050,1705423762396,-154.77896212,0.00029462,2]
[311811051,1705423762416,-154.77896212,0.00029767,2]
[311811052,1705423762435,-177.5989953,0.00029863,2]
[311811053,1705423762458,-166.666666,0.00030035,2]
[311811054,1705423762478,-24900.0,0.00030406,2]
[311811055,1705423762500,-166.666666,0.00030993,2]
[311811056,1705423762520,-154.77896212,0.00031185,7]
[311811057,1705423762543,-154.41457912,0.00031593,7]
[311811058,1705423762566,-200.0,0.00031717,15]
[311811059,1705423762588,-174.35123932,0.00031906,2]
[311811060,1705423762608,-166.666666,0.00031951,2]
[311811061,1705423762628,-154.77896212,0.00032187,7]
[311811062,1705423762648,-154.77896212,0.00032333,7]
[311811063,1705423762671,-2992.65,0.0003249,3]
[311811064,1705423762691,-2493.87,0.0003249,3]
[311811065,1705423762716,-54780.64880585,0.000325,20]
[311811066,1705423762737,-154.77896212,0.00033352,7]
[311811067,1705423762757,-1000.0,0.00034,7]
[311811068,1705423762779,-280.0,0.00034889,15]
[311811069,1705423762802,-2848.00044352,0.00035,4]
[311811070,1705423764366,-154.93802479,0.00035,4]
[311811123,1705423832009,-11615.7973338,0.0003325,5]
[311811125,1705423832021,-624.42918697,0.0003325,5]
[311811127,1705423832031,-1273.14761578,0.0003499,2]
[311811129,1705423832040,-536.82464688,0.00035,4]
[311811192,1705423838148,-3920.67797802,0.00035,4]
[311811194,1705423838158,-3038.57214038,0.00035,4]
[311811196,1705423838167,-154.95351395,0.00035,7]
[311811198,1705423838175,-1493.73141194,0.00035,7]
[311811200,1705423838185,-351.009366,0.00035,4]
[311811201,1705423838194,-154.95351395,0.00035612,5]
[311811202,1705423838204,-6758.53889554,0.00035613,4]
[311811203,1705423838213,-591.50732414,0.00035613,2]
[311811204,1705423838222,-977.134269,0.00035616,120]
[311811205,1705423838233,-173.0,0.00036,2]
[311811206,1705423838242,-230.31267465,0.00036,4]
[311811207,1705423838253,-431.45907512,0.000364,2]
[311811208,1705423838266,-431.45907512,0.000364,2]
[311811209,1705423838282,-431.45907512,0.000364,2]
[311811210,1705423838298,-431.45907512,0.000364,2]
[311811211,1705423838310,-431.45907512,0.000364,2]
[311811212,1705423838321,-431.45907512,0.000364,2]
[311811213,1705423838335,-431.45907512,0.000364,2]
[311811214,1705423838349,-431.45907512,0.000364,2]
[311811215,1705423838362,-431.45907512,0.000364,2]
[311811216,1705423838375,-431.45907,0.000364,2]
[311811217,1705423838388,-173.62782152,0.00036984,7]
[311811218,1705423838401,-173.0,0.00037397,2]
[311811219,1705423838413,-882.69968757,0.00038348,2]
[311811220,1705423838424,-1000.0,0.00038899,7]
[311811221,1705423838435,-492.17262031,0.000389,2]
[311811222,1705423838446,-620.01953531,0.00039414,2]
[311811223,1705423838458,-500.0,0.000398,3]
[311811224,1705423838471,-4036.56047096,0.0003999,4]
[311811225,1705423838482,-261.39507829,0.0004,10]
[311811226,1705423838497,-154.95351395,0.0004,4]
[311811227,1705423838509,-156.38407037,0.0004,60]
[311811228,1705423838521,-232.1663,0.00040875,2]
[311811229,1705423838531,-210.71455248,0.00040895,2]
[311811230,1705423838541,-2078.23,0.00040984,3]
[311811231,1705423838555,-250.57702289,0.00040993,2]
[311811232,1705423838568,-500.0,0.00040993,2]
[311811233,1705423838581,-185.30536879,0.00040993,2]
[311811234,1705423838593,-500.0,0.00040993,2]
[311811235,1705423838606,-213.62277874,0.00040993,2]
[311811236,1705423838620,-24564.57725237,0.00040994,7]
[311811245,1705423840946,-650.59132824,0.00035,4]
[311811247,1705423840958,-396.33818617,0.00040994,7]
[311811249,1705423841003,-1887.64989921,0.00040994,7]
[311811250,1705423841021,-3278.65927067,0.00040994,7]
[311811251,1705423841040,-4550.42497619,0.00040994,7]
[311811265,1705423843594,-1086.027425,0.00040994,7]
[311811279,1705423846268,-1731.86,0.00040984,3]
[311811280,1705423846280,-12486.59271505,0.00040994,7]
[311811281,1705423846294,-323.87814094,0.00040994,7]
[311811282,1705423846309,-519.11288423,0.00040994,7]
[311811283,1705423846322,-445609.08980017,0.00040994,7]
[311811284,1705423846332,-48646.60914047,0.00040995,2]
[311811285,1705423846342,-5800.49350909,0.00040995,5]
[311811286,1705423846352,-171.62496867,0.00041,14]
[311811287,1705423846477,-216.0,0.00041065,30]
[311811288,1705423846489,-216.0,0.00041075,30]
[311811289,1705423846501,-305.34280228,0.00041083,2]
[311811290,1705423846510,-115.9851258,0.00041085,30]
[311811291,1705423846522,-100.0148742,0.00041085,30]
[311811292,1705423846532,-201.89014816,0.00041093,4]
[311811293,1705423846541,-303.67599195,0.00041093,2]
[311811392,1705424950100,-162.94145327,0.00019965,2]
[311811393,1705424950122,-7995.1019034,0.00019965,2]
[311811394,1705424950144,-7951.66166768,0.00019966,2]
[311811395,1705424950182,-154.9690062,0.00019966,2]
[311811396,1705424950204,-2811.92311989,0.00019967,2]
[311811397,1705424950227,-154.9690062,0.00019967,3]
[311811398,1705424950251,-154.9690062,0.00019968,2]
[311811399,1705424950273,-323.19676634,0.00019968,2]
[311811400,1705424950297,-20882.03797315,0.00019972,2]
[311811401,1705424950317,-259.83999665,0.00019973,2]
[311811402,1705424950352,-2992.7707043,0.00019977,2]
[311811403,1705424950376,-166.15606132,0.00020966,2]
[311811404,1705424950398,-157.01387924,0.00020968,2]
[311811405,1705424950421,-154.9690062,0.00020968,2]
[311811406,1705424950444,-232.7478305,0.00021,2]
[311811407,1705424950480,-2419.44437303,0.00021,2]
[311811408,1705424950505,-425.4475257,0.00022,2]
[311811409,1705424950526,-217.424302,0.00022075,2]
[311811410,1705424950550,-1052.76829989,0.00023531,7]
[311811411,1705424950586,-14014.61522884,0.00023531,2]
[311811412,1705424951113,-4866.40760202,0.00023531,2]
[311811413,1705424951135,-4875.11409798,0.00023532,2]
[311811415,1705424955710,-20024.88590202,0.00023532,2]
[311811416,1705424955732,-1986.17747693,0.00024,2]
[311811417,1705424955753,-1037.52300518,0.00025,2]
[311811418,1705424955774,-1005.89378281,0.00025,2]
[311811419,1705424955799,-4716.82638211,0.00025,2]
[311811420,1705424955820,-154.9690062,0.00025,2]
[311811421,1705424955850,-1182.69872574,0.00028836,5]
[311811422,1705424955875,-1756.5,0.0002979,3]
[311811423,1705424955897,-1463.75,0.0002979,3]
[311811424,1705424955919,-275.27096145,0.00029798,2]
[311811425,1705424955941,-205.15552156,0.00029798,2]
[311811426,1705424955963,-174.6371477,0.00029798,2]
[311811427,1705424955985,-168.56703739,0.00029798,2]
[311811428,1705424956009,-2040.1138294,0.00029798,2]
[311811429,1705424956030,-198.31121037,0.00029798,2]
[311811430,1705424956056,-282.37927732,0.00029799,2]
[311811431,1705424956079,-252.88511449,0.00029799,2]
[311811432,1705424956101,-480.7676071,0.00029799,2]
[311811433,1705424956122,-455.81832442,0.00029799,2]
[311811434,1705424956143,-432.37919386,0.00029799,2]
[311811435,1705424956163,-500.0,0.00029799,2]
[311811436,1705424956183,-370.6109491,0.00029799,2]
[311811437,1705424956204,-185.30536879,0.00029799,2]
[311811438,1705424956223,-111452.95816932,0.000298,2]
[311811440,1705424971101,-154.9690062,0.00028798,4]
[311811441,1705424971123,-1219.79,0.0002979,3]
[311811442,1705424971146,-1945.68856948,0.00029798,2]
[311811443,1705424971167,-164.02625171,0.00029798,2]
[311811444,1705424971187,-155.44812884,0.00029798,2]
[311811445,1705424971209,-211.50641669,0.00029798,2]
[311811446,1705424971233,-434.23749797,0.00029799,2]
[311811447,1705424971254,-155.41830515,0.00029799,2]
[311811448,1705424971275,-1302.32861834,0.00029799,2]
[311811449,1705424971298,-71831.84778562,0.000298,2]
[311811542,1705425032218,-341.60193105,0.00028928,2]
[311811576,1705425038230,-1445.37884152,0.00028928,2]
[311811584,1705425038288,-23113.01922743,0.00028928,2]
[311811586,1705425038297,-425.4475257,0.00029788,2]
[311811588,1705425038307,-1292.34076145,0.00029789,2]
[311811590,1705425038316,-490.2,0.0002979,3]
[311811592,1705425038324,-154.9690062,0.00029799,4]
[311811594,1705425038333,-50910.87096629,0.000298,2]
[311811625,1705425038623,-2316.48588874,0.000298,2]
[311811647,1705425041175,-934.79,0.0002979,3]
[311811648,1705425041186,-11962.68588505,0.000298,2]
[311811669,1705425046325,-43200.0,0.000298,2]
[311811776,1705426172094,-1466.83935074,0.00022349,2]
[311811777,1705426172115,-154.9690062,0.00025537,4]
[311811778,1705426172133,-425.4475257,0.00025538,2]
[311811779,1705426172156,-154.9690062,0.00025538,2]
[311811780,1705426172174,-167.269157,0.0002554,2]
[311811781,1705426172195,-1986.17747693,0.00026682,2]
[311811782,1705426172214,-245.08774822,0.00026717,2]
[311811783,1705426172334,-323.19676634,0.00026815,2]
[311811784,1705426172370,-20882.03797315,0.00026816,2]
[311811785,1705426172394,-2780.38489958,0.00026817,2]
[311811786,1705426172416,-1073.08922476,0.00026818,2]
[311811787,1705426172437,-1129.78277875,0.00026818,2]
[311811788,1705426172458,-15490.19036371,0.00027638,2]
[311811873,1705426232385,-154.9690062,0.00026818,4]
[311811875,1705426232395,-236.22782048,0.00027637,2]
[311811878,1705426232404,-300.0,0.00027638,2]
[311811880,1705426232412,-378.1150802,0.000277,2]
[311811882,1705426232421,-24900.0,0.00028395,2]
[311811884,1705426232430,-936.13184148,0.00028879,5]
[311811886,1705426232439,-1117.60907725,0.00028902,5]
[311811888,1705426232448,-153.0,0.00029178,2]
[311811890,1705426232457,-153.0,0.00029178,2]
[311811892,1705426232465,-153.0,0.00029178,2]
[311811894,1705426232475,-153.0,0.00029315,2]
[311811896,1705426232483,-247.4862076,0.00029315,2]
[311811898,1705426232492,-153.0,0.00029315,2]
[311811900,1705426232502,-153.0,0.00029315,2]
[311811902,1705426232511,-370.7592716,0.00029315,2]
[311811904,1705426232521,-316.9580511,0.00029315,2]
[311811906,1705426232530,-153.0,0.00029315,2]
[311811908,1705426232539,-198.9082381,0.00029315,2]
[311811910,1705426232549,-153.0,0.00029315,2]
[311811912,1705426232558,-153.0,0.00029315,2]
[311811913,1705426232567,-153.0,0.00029315,2]
[311811916,1705426232577,-198.9082381,0.00029315,2]
[311811918,1705426232586,-153.0,0.00029589,2]
[311811920,1705426232597,-153.0,0.00029589,2]
[311811922,1705426232606,-153.0,0.00029589,2]
[311811923,1705426232615,-153.87325368,0.00029592,2]
[311811924,1705426232624,-153.0,0.000296,2]
[311811925,1705426232633,-153.0,0.000296,2]
[311811926,1705426232642,-153.0,0.000296,2]
[311811927,1705426232651,-198.9082381,0.000296,2]
[311811928,1705426232661,-153.0,0.000296,2]
[311811929,1705426232670,-153.0,0.000296,2]
[311811930,1705426232679,-153.0,0.000296,2]
[311811931,1705426232688,-153.0,0.000296,2]
[311811932,1705426232697,-153.0,0.000296,2]
[311811933,1705426232707,-212.18028483,0.000297,2]
[311811934,1705426232716,-20882.03797315,0.00029797,2]
[311811935,1705426232726,-155.68470456,0.00029798,2]
[311811936,1705426232736,-9546.8176741,0.00029798,2]
[311811937,1705426232745,-687.23089543,0.00029798,2]
[311811938,1705426232754,-272.14753769,0.00029798,2]
[311811939,1705426232764,-616.12530775,0.00029798,2]
[311811940,1705426232773,-679.38970446,0.00029798,2]
[311811941,1705426232782,-1823.55087264,0.00029798,2]
[311811942,1705426232791,-323.51711822,0.00029798,2]
[311811943,1705426232800,-1052.78607571,0.00029799,2]
[311811944,1705426232810,-26687.67875629,0.000298,2]
[311811945,1705426232991,-648.28031264,0.000298,2]
[311811952,1705426238554,-1608.47,0.0002979,3]
[311811953,1705426238565,-752.22159448,0.000298,2]
[311811954,1705426238577,-2835.2031137,0.000298,2]
[311811955,1705426238589,-1206.22,0.000298,2]
[311811977,1705426241337,-1023.20486373,0.000298,2]
[311811998,1705426243404,-261.2512567,0.00027638,2]
[311811999,1705426243414,-258.9487433,0.000298,2]
[311812000,1705426243427,-725.56,0.000298,2]
[311812001,1705426243497,-4188.23475571,0.000298,2]
[311812006,1705426246554,-154.9690062,0.00029799,4]
[311812007,1705426246564,-4163.7189938,0.000298,2]
[311812034,1705427366117,-157.04728282,0.00026332,2]
[311812035,1705427366139,-250.16082593,0.00026333,2]
[311812036,1705427366161,-167.269158,0.00026334,2]
[311812037,1705427366183,-397.2258584,0.00026594,2]
[311812038,1705427366211,-154.9690062,0.00026711,2]
[311812039,1705427366234,-154.9690062,0.00026711,4]
[311812040,1705427366256,-165.19538763,0.00026715,2]
[311812041,1705427366276,-5178.14619186,0.00027637,2]
[311812042,1705427366298,-300.0,0.00027638,2]
[311812043,1705427366319,-8752.33712952,0.00027661,2]
[311812044,1705427366341,-283.497635,0.00027665,2]
[311812045,1705427366362,-252.07672014,0.000277,2]
[311812046,1705427366384,-1985.5364354,0.00028363,2]
[311812047,1705427366406,-425.2676334,0.00028364,2]
[311812048,1705427366428,-24900.0,0.00028365,2]
[311812049,1705427366453,-1124.404332,0.00028902,5]
[311812050,1705427366476,-153.0,0.00029,2]
[311812051,1705427366498,-153.0,0.00029,2]
[311812052,1705427366518,-153.0,0.00029,2]
[311812053,1705427366539,-153.0,0.00029,2]
[311812054,1705427366567,-153.0,0.00029,2]
[311812055,1705427366591,-153.0,0.00029,2]
[311812056,1705427366614,-153.0,0.00029,2]
[311812057,1705427366639,-153.0,0.00029,2]
[311812058,1705427366660,-153.0,0.00029252,2]
[311812059,1705427366685,-153.0,0.00029252,2]
[311812060,1705427366706,-153.0,0.00029252,2]
[311812061,1705427366727,-153.0,0.000295,2]
[311812062,1705427366749,-153.0,0.000295,2]
[311812063,1705427366772,-454.9869902,0.000295,2]
[311812064,1705427366796,-153.0,0.000295,2]
[311812065,1705427366820,-153.0,0.000295,2]
[311812066,1705427366843,-153.0,0.000295,2]
[311812067,1705427366864,-153.0,0.000295,2]
[311812068,1705427366886,-306.0,0.000295,2]
[311812069,1705427366909,-153.0,0.000295,2]
[311812070,1705427366930,-153.0,0.000295,2]
[311812071,1705427366949,-153.0,0.000295,2]
[311812072,1705427366968,-153.0,0.000295,2]
[311812073,1705427366988,-153.0,0.000295,2]
[311812074,1705427367007,-153.0,0.000295,2]
[311812075,1705427367027,-153.0,0.000295,2]
[311812076,1705427367048,-153.0,0.000295,2]
[311812077,1705427367072,-153.0,0.000295,2]
[311812078,1705427367094,-153.0,0.000295,2]
[311812079,1705427367114,-153.0,0.000295,2]
[311812080,1705427367137,-156.16091714,0.0002955,2]
[311812081,1705427367156,-146.65951492,0.000296,2]
[311812089,1705427432546,-154.9690062,0.00026818,4]
[311812090,1705427432556,-3298.25416705,0.00027636,2]
[311812091,1705427432568,-5454.08296247,0.00027636,2]
[311812092,1705427432580,-4524.1727615,0.00028079,2]
[311812093,1705427432589,-1528.5590585,0.00028749,2]
[311812094,1705427432598,-6.34048508,0.000296,2]
[311812095,1705427432608,-153.0,0.000296,2]
[311812096,1705427432617,-153.0,0.000296,2]
[311812097,1705427432626,-153.0,0.000296,2]
[311812098,1705427432635,-153.0,0.000296,2]
[311812099,1705427432644,-2025.71476026,0.000296,2]
[311812100,1705427432654,-153.0,0.000297,2]
[311812101,1705427432663,-153.0,0.000297,2]
[311812102,1705427432672,-153.0,0.000297,2]
[311812103,1705427432681,-212.18028482,0.000297,2]
[311812104,1705427432690,-156.16091714,0.00029717,2]
[311812105,1705427432699,-156.16091714,0.00029787,2]
[311812106,1705427432709,-219.8115593,0.00029798,2]
[311812107,1705427432718,-4866.40760202,0.00029798,2]
[311812108,1705427432811,-1404.40869177,0.00029798,2]
[311812109,1705427432838,-344.92246123,0.00029798,2]
[311812149,1705427438687,-3317.6555251,0.000296,2]
[311812151,1705427438697,-1540.1584688,0.0002979,3]
[311812152,1705427438708,-1077.8115312,0.0002979,3]
[311812154,1705427438717,-196.35741648,0.00029798,2]
[311812156,1705427438726,-211.50641669,0.00029798,2]
[311812158,1705427438735,-164.02625171,0.00029798,2]
[311812160,1705427438744,-155.44812884,0.00029798,2]
[311812162,1705427438753,-434.23749797,0.00029798,2]
[311812163,1705427438762,-155.41830515,0.00029798,2]
[311812165,1705427438771,-82.19207206,0.00029798,2]
[311812168,1705427438782,-1140.06440702,0.00029798,2]
[311812239,1705427443573,-153.0,0.000297,2]
[311812240,1705427443586,-80.07213926,0.00029798,2]
[311812241,1705427443595,-155.54166956,0.00029798,2]
[311812242,1705427443605,-250.12133287,0.00029798,2]
[311812243,1705427443615,-156.93754033,0.00029798,2]
[311812244,1705427443626,-2.99628363,0.00029799,2]
[311812245,1705427443638,-3543.66068221,0.00029799,2]
[311812246,1705427443655,-2596.50137826,0.00029799,2]
[311812247,1705427443666,-303.49862174,0.000298,2]
[311812248,1705427443677,-8556.37720028,0.000298,2]
[311812249,1705427443689,-1319.95112855,0.000298,2]
[311812250,1705427443702,-678.29005975,0.000298,2]
[311812474,1705427446633,-154.9690062,0.00026818,4]
[311812476,1705427446642,-153.0,0.000297,2]
[311812478,1705427446651,-2181.64,0.0002979,3]
[311812480,1705427446662,-105237.00748594,0.000298,2]
[311812482,1705427446672,-546.95952545,0.000298,2]
[311812484,1705427446680,-155.06357607,0.000298,2]
[311812486,1705427446689,-178.83619526,0.000298,2]
[311812490,1705427446706,-410.24944644,0.000298,2]
[311812493,1705427446720,-261.2512567,0.000298,2]
[311812495,1705427446729,-205.8499845,0.000298,2]
[311812497,1705427446738,-153.0,0.000298,2]
[311812499,1705427446748,-153.0,0.000298,2]
[311812502,1705427446757,-153.0,0.000298,2]
[311812505,1705427446766,-153.0,0.000298,2]
[311812508,1705427446776,-153.0,0.000298,2]
[311812511,1705427446785,-153.0,0.000298,2]
[311812514,1705427446795,-153.0,0.000298,2]
[311812517,1705427446805,-153.0,0.000298,2]
[311812520,1705427446814,-153.0,0.000298,2]
[311812523,1705427446824,-169.327383,0.00029863,2]
[311812526,1705427446834,-153.0,0.000299,2]
[311812529,1705427446843,-153.0,0.000299,2]
[311812532,1705427446852,-282.75607304,0.0003,3]
[311812535,1705427446862,-317.49900988,0.0003,3]
[311812538,1705427446871,-168.00002645,0.0003,7]
[311812541,1705427446880,-400.0,0.0003,14]
[311812544,1705427446889,-2000.0,0.0003,2]
[311812547,1705427446898,-2000.0,0.0003001,2]
[311812550,1705427446908,-2000.0,0.0003002,2]
[311812553,1705427446917,-2000.0,0.0003003,2]
[311812556,1705427446926,-156.16091714,0.00030035,7]
[311812559,1705427446935,-2000.0,0.0003004,2]
[311812562,1705427446945,-2000.0,0.0003005,2]
[311812565,1705427446954,-2000.0,0.0003006,2]
[311812568,1705427446964,-2000.0,0.0003007,2]
[311812571,1705427446974,-3028.958158,0.0003008,2]
[311812574,1705427446983,-156.16091714,0.00030218,7]
[311812577,1705427446993,-156.16091714,0.00030525,7]
[311812580,1705427447002,-156.16091714,0.00030535,7]
[311812583,1705427447012,-243.45569948,0.00030805,7]
[311812586,1705427447022,-156.16091714,0.00031572,7]
[311812589,1705427447031,-156.16091714,0.00031645,7]
[311812592,1705427447040,-153.87325368,0.00031696,7]
[311812594,1705427447049,-919.79475655,0.00031906,2]
[311812596,1705427447058,-244.50240364,0.00031906,2]
[311812598,1705427447067,-349.28914806,0.00031906,2]
[311812600,1705427447077,-411.0,0.0003197,30]
[311812602,1705427447086,-519.0,0.0003197,30]